Cogmind - Beta 17.1 @@@ ROGUE MODE // 2026.09.04 @ 21:32:48 Player: Finn Result: Destroyed by G-47 Trooper with Particle Gun Performance ------------- Evolutions (2) 1000 Regions Visited (5) 1000 Robots Destroyed (75) 375 Value Destroyed (2497) 2497 Prototype IDs (2) 40 Alien Tech Used (0) 0 Bonus (84) 84 TOTAL SCORE: 4996 Bonus ------- High Alert Combat Kills 84 Cogmind --------- Core Integrity 0/550 Matter 55/300 Energy 99/100 System Corruption 1% Temperature Cool (9) Movement Core (100) Ox1 Location -8/Storage Parts ------- > --- POWER (2) -------- (None) > --- PROPULSION (3) --- (None) > --- UTILITY (4) ------ Small Storage Unit > --- WEAPON (2) ------- (None) > --- INVENTORY (8) ---- Improved Ion Engine EM Pulse Gun Autogun Rocket Launcher Datajack Peak State ------------ > --- POWER ------------ Improved Ion Engine Light Nuclear Core > --- PROPULSION ------- Armored Wheel Armored Wheel Armored Wheel > --- UTILITY ---------- Small Storage Unit Improved Terrain Scanner Terrain Scan Processor ECM Suite > --- WEAPON ----------- EM Shotgun Minigun > --- INVENTORY -------- Improved Ion Engine Armored Wheel EM Pulse Gun Autogun Flak Cannon Grenade Launcher Rocket Launcher Datajack [Rating: 24] Favorites ----------- Power Improved Ion Engine Engine Improved Ion Engine Power Core Light Nuclear Core Propulsion Armored Wheel Treads Light Treads Wheel Armored Wheel Utility Small Storage Unit Device Sensor Array Storage Small Storage Unit Processor Visual Processing Unit Weapon Heavy Assault Rifle Energy Gun EM Pulse Gun Ballistic Gun Heavy Assault Rifle Ballistic Cannon Flak Cannon Launcher Grenade Launcher Special Melee Weapon Datajack Build | -11 -10 -9 -9 -8 -8 ------- Run | Yrd Mat Mat Min Mat Sto Slots Evolved 4 | . . 2 . 2 . Power 1 | . . . . 1 . Propulsion 1 | . . 1 . . . Utility 2 | . . 1 . 1 . Weapon . | . . . . . . Parts Attached 37 | 7 3 15 5 6 1 Power 5 | 1 . 2 1 1 . Engine 4 | 1 . 2 1 . . Core 1 | . . . . 1 . Reactor . | . . . . . . Propulsion 10 | 2 . 7 . . 1 Treads 5 | 2 . 3 . . . Leg . | . . . . . . Wheel 5 | . . 4 . . 1 Hover . | . . . . . . Flight . | . . . . . . Utility 7 | 1 1 2 1 2 . Device 3 | . . 1 1 1 . Storage 1 | 1 . . . . . Processor 3 | . 1 1 . 1 . Hackware . | . . . . . . Protection . | . . . . . . Artifact . | . . . . . . Weapon 15 | 3 2 4 3 3 . Energy Gun 3 | 2 . . 1 . . Energy Cannon . | . . . . . . Ballistic Gun 6 | 1 . 3 1 1 . Ballistic Cannon 1 | . . . . 1 . Launcher 4 | . 1 1 1 1 . Special Weapon . | . . . . . . Impact Weapon . | . . . . . . Slashing Weapon . | . . . . . . Piercing Weapon . | . . . . . . Special Melee Weapon 1 | . 1 . . . . Unidentified Prototypes . | . . . . . . Parts Lost 17 | . . 1 3 4 9 Power 2 | . . . . . 2 Propulsion 4 | . . . . 1 3 Utility 4 | . . . 1 1 2 Weapon 7 | . . 1 2 2 2 Highest Loss Streak 6 | . . 1 1 3 6 To Critical Strikes . | . . . . . . Average Backups 6 | 1 4 7 7 6 5 Power 1 | . 1 2 2 1 1 Propulsion 1 | . . 1 1 1 . Utility . | . . . . . . Weapon 2 | . 3 2 2 3 3 Tool/Special . | . . . . . . Unused Backups 3 | . . . 2 . 1 Power 2 | . . . 1 . 1 Propulsion 1 | . . . 1 . . Utility . | . . . . . . Weapon . | . . . . . . Tool/Special . | . . . . . . Average Slot Usage (%) 94 | . 91 98 98 88 78 Engine 11 | . 14 11 11 9 8 Core 1 | . . . . 6 8 Treads 12 | . 28 14 . . . Wheel 17 | . . 17 33 22 22 Device 5 | . . 4 9 12 6 Storage 11 | . 14 11 11 9 9 Processor 11 | . 6 16 11 11 8 Energy Gun 5 | . 9 3 7 4 . Ballistic Gun 12 | . 9 17 13 8 6 Launcher 1 | . 2 . . 2 . Special Melee Weapon 1 | . 6 . . . . Peak Build Rating 24 | 6 8 17 17 24 21 Average Rating 13 | 4 6 14 16 20 18 On Entrance 11 | . 6 8 17 17 20 Avg Prop Armor Cover (%) . | . . . . . . Naked Turns . | . . . . . . Heaviest Build 29 | 13 15 19 20 29 28 Greatest Support 60 | 40 40 60 36 36 36 Greatest Overweight (x) 7 | . . 1 . 1 7 Average Overweight (x) . | . . . . . . Largest Inventory Capacity 8 | 8 8 8 8 8 8 Average Capacity 7 | 6 8 8 8 8 8 Most Carried 8 | 4 7 8 8 8 5 Average Carried 6 | 1 4 7 7 6 5 Final Capacity 8 | 8 8 8 8 8 8 Final Carried 8 | 2 7 8 7 6 5 Class Distribution -------------------- 91% | Mutant 8% | Scavenger-Mutant Dominant Class ---------------- Mutant | -10/Materials Mutant | -9/Materials Mutant | -9/Mines Mutant | -8/Materials Mutant | -8/Storage Resources | -11 -10 -9 -9 -8 -8 ----------- Run | Yrd Mat Mat Min Mat Sto Matter Collected 1446 | 221 141 477 288 319 . Remotely . | . . . . . . Salvage Created 2209 | . 246 961 372 630 . Parts 148 | . 14 70 19 45 . Haulers Intercepted . | . . . . . . Recyclers Shooed 1 | . . 1 . . . Parts Field Recycled . | . . . . . . Retrieved Matter . | . . . . . . Parts Self-Destructed . | . . . . . . Prevented . | . . . . . . Parts Restored . | . . . . . . Kills | -11 -10 -9 -9 -8 -8 ------- Run | Yrd Mat Mat Min Mat Sto Combat Hostiles Destroyed 63 | . 5 27 11 20 . Guns 23 | . 3 11 3 6 . Cannons 6 | . . . . 6 . AOE 34 | . 2 16 8 8 . Classes Destroyed 10 | . 3 3 3 1 . Worker 1 | . . . . 1 . Builder 4 | . . 3 . 1 . Tunneler 1 | . . . 1 . . Operator 1 | . 1 . . . . Watcher 6 | . 1 4 . 1 . Swarmer 12 | . . 7 . 5 . Grunt 39 | . 5 12 9 13 . Brawler 1 | . . . 1 . . Sentry 10 | . . 8 . 2 . Assembled 1 | . . . 1 . . Best Kill Streak 14 | . 2 7 3 14 . Combat Bots Only 12 | . 2 7 3 12 . Max Kills in Single Turn 4 | . 1 4 2 4 . Gunslinging . | . . . . . . Exploded 4 | . 1 4 2 2 . Melee . | . . . . . . Uniques/NPCs Destroyed . | . . . . . . Combat | -11 -10 -9 -9 -8 -8 -------- Run | Yrd Mat Mat Min Mat Sto Hostile Shots Fired 302 | . 30 78 20 72 102 Missed 89 | . 6 20 5 26 32 Hits 213 | . 24 58 15 46 70 Projectile 213 | . 24 58 15 46 70 Critical Strikes 9 | . . 3 . 3 3 Damage Taken 2905 | . 338 838 170 653 906 Core 823 | . 68 122 66 197 370 Absorbed by Shields . | . . . . . . Core Remaining (%) 75 | 100 72 . 53 . . Volleys Fired 155 | . 29 66 30 29 1 Largest 2 | . 2 2 2 2 2 Hottest 85 | . 70 63 85 70 62 Shots Fired 287 | . 54 123 54 54 2 Gun 237 | . 51 112 46 27 1 Cannon 19 | . . . . 18 1 Launcher 31 | . 3 11 8 9 . Special . | . . . . . . Kinetic 182 | . 26 98 14 42 2 Thermal 31 | . 20 11 . . . Explosive 31 | . 3 11 8 9 . Electromagnetic 43 | . 5 3 32 3 . Robot Hit Streak 12 | . 8 12 8 8 2 Robot Miss Streak 4 | . 3 4 2 4 1 Penetration Max . | . . . . . . Secondary Targets 2 | . . 2 . . . Max Gunslinging Chain 1 | . . 1 . . . Shots Hit Robots 187 | . 49 73 28 36 1 Core Hits 143 | . 13 47 21 61 1 Critical Kills . | . . . . . . Critical Parts Destroyed . | . . . . . . Critical Strikes . | . . . . . . Melee Attacks 21 | . 14 7 . . . Impact . | . . . . . . Slashing . | . . . . . . Piercing . | . . . . . . Sneak Attacks 15 | . 10 5 . . . Combat Hostiles . | . . . . . . Follow-up Attacks . | . . . . . . Damage Inflicted 5081 | . 572 2137 864 1471 37 Guns 1959 | . 401 921 323 314 . Cannons 264 | . . . . 238 26 Explosions 2841 | . 171 1210 541 919 . Melee . | . . . . . . Ramming 17 | . . 6 . . 11 Kinetic 1677 | . 191 866 86 508 26 Thermal 812 | . 185 587 40 . . Explosive 2269 | . 171 678 501 919 . Electromagnetic 306 | . 25 . 237 44 . Impact . | . . . . . . Slashing . | . . . . . . Piercing . | . . . . . . Highest Corruption 1 | . . . . . 1 Average Corruption 1 | . . . . . 1 Corruption Purged . | . . . . . . Corruption Blocked . | . . . . . . Overload Shots . | . . . . . . Overflow Damage 80 | . . 65 6 9 . Projectiles . | . . . . . . Explosions 80 | . . 65 6 9 . Melee . | . . . . . . Knockbacks 6 | . . . . 6 . Impact . | . . . . . . Kinetic 4 | . . . . 4 . Secondary 2 | . . . . 2 . Self-Inflicted Damage 106 | . . 101 . . 5 Shots 3 | . . 3 . . . Rammed 3 | . . 1 . . 2 Targets Rammed 3 | . . 1 . . 2 Kicked . | . . . . . . Crushed . | . . . . . . Highest Temperature 144 | . 57 20 120 144 26 Average Temperature 37 | . 22 6 35 58 13 Received Heat Transfer 1197 | . 159 297 93 351 297 Siege Activations . | . . . . . . Martial Activations . | . . . . . . Shielding Activations . | . . . . . . Robots Disrupted . | . . . . . . Combat Hostiles . | . . . . . . Robots Corrupted . | . . . . . . Combat Hostiles . | . . . . . . Parts Fried 2 | . . . 2 . . Impact Corruptions . | . . . . . . Robots Melted . | . . . . . . Combat Hostiles . | . . . . . . Parts Melted 2 | . . 1 1 . . Heat Transferred 1050 | . 425 525 100 . . Parts Sabotaged . | . . . . . . Parts Stolen . | . . . . . . Parts Stripped . | . . . . . . Power Chain Reactions . | . . . . . . Alert | -11 -10 -9 -9 -8 -8 ------- Run | Yrd Mat Mat Min Mat Sto Maximum Alert Level 2 | . . 2 1 2 . Low Security (%) 62 | 100 100 36 38 79 100 Level 1 23 | . . 22 61 16 . Level 2 14 | . . 40 . 4 . Level 3 . | . . . . . . Level 4 . | . . . . . . Level 5 . | . . . . . . High Security . | . . . . . . Max Security . | . . . . . . Peak Influence 567 | . 57 567 272 440 185 Initial 220 | . . . 220 76 185 Average 163 | . 10 276 201 126 106 Influence Increases 2134 | . 178 954 393 594 15 Destroy 0b10 Robot/C 1240 | . 100 540 200 400 . Destroy 0b10 Robot/NC 65 | . 10 35 5 15 . Destroy Leader 312 | . 32 158 30 92 . Successful Hack 41 | . 5 17 . 19 . Disable Machine 225 | . . 135 90 . . Destroy Structure 206 | . 16 54 68 68 . Partial Spotted 15 | . . 15 . . . Lose Combat Pursuer 30 | . 15 . . . 15 Influence Decreases 2134 | . 178 387 763 351 455 Entered New Map 723 | . . . 347 121 255 Time Decay 1261 | . 178 377 386 190 130 Lost Part 150 | . . 10 30 40 70 Squads Dispatched 12 | . 2 1 . 7 2 Investigation 4 | . 1 . . 2 1 Extermination . | . . . . . . Reinforcement 5 | . 1 1 . 2 1 Assault . | . . . . . . Garrison 3 | . . . . 3 . Intercept . | . . . . . . Searches Triggered . | . . . . . . Construction Impeded . | . . . . . . Haulers Reinforced . | . . . . . . Active Scanning Responses . | . . . . . . Cargo Convoy Interrupts . | . . . . . . Stealth | -11 -10 -9 -9 -8 -8 --------- Run | Yrd Mat Mat Min Mat Sto Distress Signals 6 | . . 3 . 2 1 Communications Jammed . | . . . . . . Distress Signals . | . . . . . . Times Spotted 103 | . 14 39 9 30 11 Peak Tracking Total 8 | . 3 6 3 6 8 Tactical Retreats 4 | . 1 . . 1 2 ECM-based Alert Blocks 4 | . . . . 3 1 Traps | -11 -10 -9 -9 -8 -8 ------- Run | Yrd Mat Mat Min Mat Sto Traps Triggered 5 | . 3 . . 2 . Indirectly . | . . . . . . Trap Hack Attempts . | . . . . . . Triggered . | . . . . . . Disarmed 4 | . . 4 . . . Reprogrammed . | . . . . . . Reused . | . . . . . . Traps Extracted . | . . . . . . Installed . | . . . . . . Triggered . | . . . . . . Machines | -11 -10 -9 -9 -8 -8 ---------- Run | Yrd Mat Mat Min Mat Sto Machines Disabled 15 | . . 9 6 . . Max in Single Turn 8 | . . 8 4 . . Machines Repaired . | . . . . . . Machines Dismantled . | . . . . . . Machines Sabotaged . | . . . . . . Overloaded Fab Kills . | . . . . . . Hacking | -11 -10 -9 -9 -8 -8 --------- Run | Yrd Mat Mat Min Mat Sto Machines Accessed 22 | . 4 10 . 4 4 Terminals 17 | . 4 7 . 2 4 Fabricators . | . . . . . . Repair Stations . | . . . . . . Recycling Units 1 | . . 1 . . . Scanalyzers 3 | . . 2 . 1 . Garrison Access 1 | . . . . 1 . Total Hacks 43 | . 8 18 . 8 9 Successful 18 | . 3 10 . 3 2 Failed 25 | . 5 8 . 5 7 Catastrophic 3 | . . . . 2 1 Database Lockouts . | . . . . . . Manual . | . . . . . . Terminals 30 | . 8 11 . 2 9 Fabricators . | . . . . . . Repair Stations . | . . . . . . Recycling Units 2 | . . 2 . . . Scanalyzers 7 | . . 5 . 2 . Garrison Access 4 | . . . . 4 . Terminal Hacks 13 | . 3 6 . 2 2 Robot Analysis 2 | . 1 1 . . . Prototype ID Bank 1 | . . 1 . . . Open Door 1 | . . . . . 1 Branch Access Points 1 | . . . . 1 . Emergency Access Points 1 | . 1 . . . . Locate Traps 1 | . . 1 . . . Disarm Traps 1 | . . 1 . . . Dispatch Records 1 | . . 1 . . . Recall Reinforcements 1 | . . . . . 1 Zone Layout 3 | . 1 1 . 1 . Fabricator Hacks . | . . . . . . Repair Station Hacks . | . . . . . . Recycling Unit Hacks . | . . . . . . Scanalyzer 5 | . . 4 . 1 . Retrieve Study 5 | . . 4 . 1 . Garrison Access Hacks . | . . . . . . Unauthorized Hacks . | . . . . . . Terminals . | . . . . . . Fabricators . | . . . . . . Repair Stations . | . . . . . . Recycling Units . | . . . . . . Scanalyzers . | . . . . . . Garrison Access . | . . . . . . Data Cores Recovered . | . . . . . . Used . | . . . . . . Hacking Detections 13 | . 2 6 . 3 2 Full Trace Events 4 | . 1 . . 1 2 Feedback Events 1 | . . . . . 1 Corruption 1 | . . . . . 1 Feedback Blocked . | . . . . . . Robot Schematics Acquired . | . . . . . . Robots Built . | . . . . . . Authchips . | . . . . . . Time . | . . . . . . Total Robot Build Rating . | . . . . . . Part Schematics Acquired . | . . . . . . Parts Built . | . . . . . . Authchips . | . . . . . . Time . | . . . . . . Total Part Build Rating . | . . . . . . Part Studies Acquired 5 | . . 4 . 1 . Parts Repaired . | . . . . . . Time . | . . . . . . Parts Recycled . | . . . . . . Recycled Matter . | . . . . . . Retrieved Matter . | . . . . . . Retrieved Components . | . . . . . . Parts Scanalyzed . | . . . . . . Part Schematics Acquired . | . . . . . . Parts Damaged . | . . . . . . Bothacking | -11 -10 -9 -9 -8 -8 ------------ Run | Yrd Mat Mat Min Mat Sto Used RIF Installer . | . . . . . . Robots Hacked 6 | . 6 . . . . Non-combat 6 | . 6 . . . . Combat . | . . . . . . Robot Hacks Applied 11 | . 11 . . . . parse_system 3 | . 3 . . . . no_distress 7 | . 7 . . . . find_recycling 1 | . 1 . . . . Relay Couplers Released . | . . . . . . Fabnet Peak Effective % . | . . . . . . Robots Rewired . | . . . . . . Allies Hacked . | . . . . . . Hacks Repelled . | . . . . . . Allies | -11 -10 -9 -9 -8 -8 -------- Run | Yrd Mat Mat Min Mat Sto Total Allies . | . . . . . . Largest Group . | . . . . . . Highest-Rated Group . | . . . . . . Highest-Rated Ally . | . . . . . . Total Orders . | . . . . . . Ally Attacks . | . . . . . . Total Damage . | . . . . . . Kills . | . . . . . . Allies Corrupted . | . . . . . . Allies Melted . | . . . . . . Intel | -11 -10 -9 -9 -8 -8 ------- Run | Yrd Mat Mat Min Mat Sto Active Infowar (turns) 3389 | . 458 1423 900 397 211 Optics 2916 | . 458 1423 900 135 . Sensors 1100 | . . 547 553 . . Terrain 161 | . . . . 161 . ECM 838 | . . . 230 397 211 Robot Analysis Total 2 | . 1 1 . . . Derelict Logs Recovered 1 | . . . 1 . . Drone Launches . | . . . . . . Drone Recoveries . | . . . . . . Exploration | -11 -10 -9 -9 -8 -8 ------------- Run | Yrd Mat Mat Min Mat Sto Turns Passed 4082 | 78 990 1423 900 397 294 Spaces Moved 2283 | 43 373 928 528 257 154 Core 21 | 5 . . . . 16 Treads 709 | 38 373 298 . . . Legs . | . . . . . . Wheels 1553 | . . 630 528 257 138 Hover . | . . . . . . Flight . | . . . . . . Fastest Speed 50 | 50 160 90 90 90 90 Average Speed 113 | 147 160 112 90 96 99 Slowest Speed 400 | 160 160 160 90 105 400 Overloaded Moves . | . . . . . . Propulsion Burnouts . | . . . . . . Robots Hopped . | . . . . . . Potential Cave-ins . | . . . . . . Cave-ins Triggered . | . . . . . . Exploration Rate (%) 49 | 3 67 76 98 27 28 Regions Visited 5 Branch Regions 2 Pre-discovered Areas 1 | . . . 1 . . Known Exits Taken 2 | . . . 1 1 . Unknown Exits Taken 3 | 1 1 1 . . . Scrap Searched 3 | . . . 3 . . Spaces Dug . | . . . . . . Terrain Destroyed 225 | . 14 54 89 68 . Melee . | . . . . . . Projectile . | . . . . . . AOE 225 | . 14 54 89 68 . Terrain Rammed . | . . . . . . Walls Destroyed . | . . . . . . Machines Disabled . | . . . . . . Actions | -11 -10 -9 -9 -8 -8 --------- Run | Yrd Mat Mat Min Mat Sto Total 3477 | 57 703 1177 894 353 293 Wait 913 | . 277 134 315 52 135 Move 2278 | 42 372 927 527 256 154 Hop . | . . . . . . Pick Up 26 | 8 6 4 5 3 . Fast Attach 7 | . . 5 . 2 . Attach 16 | 6 1 2 3 3 1 Detach . | . . . . . . Swap 41 | 1 4 19 11 6 . Drop 17 | . . 12 3 2 . Fire 155 | . 29 66 30 29 1 Melee 21 | . 14 7 . . . Ram 3 | . . 1 . . 2 Kick . | . . . . . . Crush . | . . . . . . Escape Stasis . | . . . . . . Rewire . | . . . . . . Trap . | . . . . . . Miscellaneous . | . . . . . . Route ------- -11/Scrapyard -10/Materials (discovered 2 exits: *Mat x2) -9/Materials (discovered 4 exits: *Mat x2 / [*Min x2]) -9/Mines (discovered 2 exits: *Mat x2) -8/Materials -8/Storage History --------- Turn | Location | Event 14 | -11/Scrapyard | Discovered new exit (range 16) 79 | -11/Scrapyard | Entered Materials 308 | -10/Materials | Build established: Mutant 490 | -10/Materials | Discovered new exit (range 3) 829 | -10/Materials | Discovered new exit (range 17) 1069 | -10/Materials | Entered another Materials area 1069 | -9/Materials | Evolved 2 slots: Propulsion x1, Utility x1 1173 | -9/Materials | Discovered new exit (range 16) 1416 | -9/Materials | Discovered new exit (range 16) 1445 | -9/Materials | Identified exit to Materials 1607 | -9/Materials | Destroyed 7 combat bots 1653 | -9/Materials | Build established: Scavenger-Mutant 1922 | -9/Materials | Discovered exit to Materials (range 3) 2023 | -9/Materials | Build established: Mutant 2416 | -9/Materials | Discovered new exit (range 17) 2492 | -9/Materials | Entered Mines 2500 | -9/Mines | Met a Derelict bent on vengeance 2775 | -9/Mines | Discovered exit to Materials (range 8) 2838 | -9/Mines | Found a hidden stash of uninstalled traps 3003 | -9/Mines | Learned location of Storage (-8) 3029 | -9/Mines | Discovered exit to Materials (range 16) 3100 | -9/Mines | Excavation squad dispatched 3100 | -9/Mines | A large section of the Mines collapsed 3392 | -9/Mines | Entered Materials 3392 | -8/Materials | Evolved 2 slots: Power x1, Utility x1 3393 | -8/Materials | Identified exit to Storage 3574 | -8/Materials | Garrison activated, responded to threat 3613 | -8/Materials | Lost 3 parts (1n2w) 3763 | -8/Materials | Destroyed 12 combat bots 3789 | -8/Materials | Entered Storage 4007 | -8/Storage | Core integrity fell below 50% 4043 | -8/Storage | Lost 3 parts (1n1u1w) 4062 | -8/Storage | Core integrity fell below 20% 4083 | -8/Storage | Destroyed by G-47 Trooper with Particle Gun Last Messages --------------- 04027_ U-05 Engineer destroyed. 04043_ Connecting with Door Terminal... 04046_ Arm. Wheel destroyed. 04053_ Terrain Scan Processor destroyed. 04055_ Slug penetrates Y-45 Defender. 04056_ Flak Cannon destroyed. 04056_ Critical hit (Burn: +37). 04059_ Slug penetrates Door. 04061_ Slug penetrates Wall. 04064_ Imp. Ion Engine+ destroyed. 04067_ Lgt. Nuclear Core+ destroyed. 04071_ Penetrated by Slug. 04071_ Terminal disabled. 04077_ Connecting with Terminal... >>Recall(Reinforcements) Establishing remote squad link... Recalled reinforcement squad 49CJWV83CF. Feedback: System corruption (+1%). 04077_ ALERT: Suspicious activity at Terminal S013. Dispatching Investigation squad. Map ----- +----------------------------------------------------+ | | | | | | | | | | | | | | | | | | | | | | | | | | | | | ?????????????????????????????????????????????????? | | ??????????####?##?#??????????????????????????????? | | ?????????# #?????????????????????????????? | | ?????????# """ """ #?????????????????????????????? | | ?????????# """ """ #?????????????????????????????? | | ?????????# """ """ #?????????????????????????????? | | ????????## #?????????????????????????????? | | ????????? #?????????????????????????????? | | ?????????# #???#####?????????????????????? | | ?????????# ? #???#"""#?????????????????????? | | ??????"####"#####+##???#"T"#?????????????????????? | | ??????" #####"@"######????????????????? | | ??????" + Y Y Y #????????????????? | | ??????"#T######## #h""" """ #????????????????? | | ???????##???????# # """g""" #????????????????? | | ????????????????# ; """ """ #????????????????? | | ????????????????# # h Y #????????????????? | | ???????????????## ###### T"### #????????????????? | | ################ #???#"""#??##????????????????? | | + %! #???#####????????????????????? | | # = #????????????????????????????? | | ## ### ######### #????????????????????????????? | | ?????# #???????##+###????????????????????????????? | | ?#???# #?????????????????????????????????????????? | | ?#/###+#####?????????????????????????????????????? | | ## !#?????????????????????????????????????? | | # ###???????????????????????????????????? | | ## ""#???????????????????????????????????? | | #" [[[ T"#???????????????????????????????????? | | #T [[ ""#???????????????????????????????????? | | #" [[ ###???????????????????????????????????? | | ## #?????????????????????????????????????? | | ?# #?????????????????????????????????????? | | ?#####+#####?????????????????????????????????????? | | ????# #????????????????????????????????????????? | | ????# #????????????????????????????????????????? | +----------------------------------------------------+ Best States ------------- Heat Dissipation 31 Energy Generation 24 Energy Capacity 325 Matter Stores 300 Matter Capacity 300 Sight Range 18 Robot Scan Range 14 Terrain Scan Range 16 Terrain Scan Density 85 ECM Strength 1 Evasion (%) 42 Recoil Reduction 3 Item Schematics ----------------- None Robot Schematics ------------------ None Fabricated ------------ Nothing Repaired ---------- Nothing Studied --------- Datajack | -9/Materials | Hacked Hvy. Assault Rifle | -9/Materials | Hacked Lgt. Treads | -9/Materials | Hacked Imp. Ion Engine | -9/Materials | Hacked Lgt. Nuclear Core | -8/Materials | Hacked Alien Tech Used ----------------- None Achievements -------------- None Challenges ------------ None Game ------ Seed LaunchPlasmaMapper Manual? 0 Play Time 00:33:19 Cumulative 32.4 hours Start 2026.09.04 @ 21:02:03 End 2026.09.04 @ 21:32:48 Sessions 1 Manual Loads 0 Difficulty Rogue Special Mode None Game No. 80 Rogue 63 Adventurer 15 Explorer 2 Win Type - Total 0 Types 0/0/0/0/0/0/0/0/0/0 Lore% 25 Gallery% 25 Achievement% 21 Wizard Run 0 Options --------- Layout 1 ASCII 0 Keyboard 0 Movement Mouse Keybinds 0 Fullscreen 1 Font 24/Smallcaps Map View 50x35 Zoom Use 0% Tactical HUD 1 Map Filters NONE Filters NONE Steam 1 RUN: 2d9acc7a-28e9-41f6-a3c3-815f6cfb8d42